[Event "Marienbad A1-GM 2024"]
[Site "Marianske Lazne"]
[Date "2024.01.16"]
[Round "5.1"]
[White "Stein, Robert"]
[Black "Kusa, Jakub"]
[Result "0-1"]
[ECO "D30"]
[WhiteElo "2429"]
[BlackElo "2350"]
[Annotator "TA"]
[PlyCount "88"]
[EventDate "2024.01.10"]
[EventType "tourn"]
[EventCountry "CZE"]
[SourceTitle "playchess.com"]
[Source "ChessBase"]
[SourceQuality "1"]
[TimeControl "40/5400+30:1800+30"]

{[%evp 10,88,1,0,12,-8,-25,-35,-41,-33,-28,-68,21,20,30,18,24,-2,6,-19,43,0,6,0,5,-74,-72,-64,-66,-109,-103,-111,-59,-125,-152,-175,-165,-179,-189,-208,-200,-170,-81,-205,-179,-231,-240,-482,-472,-467,-477,-630,-630,-1480,-1464,-1455,-1439,-1116,-775,-773,-739,-774,-639,-5930,-5465,-12824,-6379,-29986,-29987,-29987,-29988,-29991,-29992,-29992,-29991,-29991,-29992,-29992,-29993,-29996,-29994]} 1. d4 {[%emt 0:00:02]} d5 {[%emt 0:00:23]} 2. c4 {[%emt 0:00:16]} e6 {[%emt 0:00:13]} 3. Nf3 {[%emt 0:00:35]} Nf6 {[%emt 0:00:28]} 4. g3 {[%emt 0:00:18]} Bb4+ {[%emt 0:01:02]} 5. Nbd2 {[%emt 0:02:07]} dxc4 {[%emt 0:00:41]} 6. Bg2 {[%emt 0:01:29]} b5 {[%emt 0:00:45] Prevents Qa4. E04: Open Catalan: 5 Nf3.} 7. a3 {[%emt 0:01:26][%mdl 1024] White has compensation. Recently 7.Ne5 got a lot of attention.} Be7 {[%emt 0:03:15]} 8. Ne5 {[%emt 0:11:03]} Nd5 $1 {[%emt 0:00:39] [#] Black is slightly better.} 9. b3 $146 {[%emt 0:14:01]} ({Predecessor:} 9. O-O O-O 10. b3 Bb7 11. bxc4 Nc3 12. Qe1 Bxg2 13. Kxg2 bxc4 14. Ndf3 Ne4 15. Nxc4 {½-½ Robson,R (2690)-Caruana,F (2763) USA-ch Saint Louis 2022 (2)}) 9... Bb7 {[%emt 0:07:30] ...Nc3 would be deadly.} 10. e4 {[%emt 0:07:03]} (10. bxc4 Nc3 11. Qb3 Bxg2 $17) 10... c3 {[%emt 0:07:07]} (10... Nb6 $1 $15 11. Bb2 N8d7 12. Nxd7 Qxd7) 11. Nb1 $11 {[%emt 0:06:30]} Nf6 {[%emt 0:01:00]} 12. Nxc3 {[%emt 0:08:05]} b4 {[%emt 0:01:22]} 13. Na4 {[%emt 0:06:22]} O-O {[%emt 0:02:22]} 14. f3 {[%emt 0:12:00]} Na6 {[%emt 0:05:13]} (14... Nfd7 $11) 15. Be3 {[%emt 0:04:46]} bxa3 {[%emt 0:04:05]} 16. O-O {[%emt 0:00:37]} Nd7 {[%emt 0:03:26]} 17. Nd3 {[%emt 0:05:09]} (17. Nc4 $11) 17... Nb4 $17 {[%emt 0:01:42]} 18. Nxb4 {[%emt 0:00:51]} Bxb4 {[%emt 0:00:08]} 19. Qc2 {[%emt 0:01:32]} a5 {[%emt 0:02:50]} 20. Rfd1 {[%emt 0:01:23]} Rc8 {[%emt 0:02:11]} ({Black should try} 20... Qe7 $17) 21. Rac1 {[%emt 0:01:19]} (21. Bc1 $15) 21... Qe7 {[%emt 0:01:24]} 22. f4 {[%emt 0:03:49]} Rfd8 {[%emt 0:04:24]} 23. h3 {[%emt 0:00:12] [#]} f5 $1 {[%emt 0:02:32][%mdl 512]} 24. e5 {[%emt 0:02:12]} (24. Bf2 Bxe4) 24... Bxg2 {[%emt 0:01:07]} 25. Kxg2 {[%emt 0:00:13]} Nf8 {[%emt 0:04:17]} (25... Nb6 $19 {and Black stays clearly on top. Threatens to win with ...Nd5.} 26. Kh2 Nd5) 26. d5 {[%emt 0:02:27] Loses the game.} Qf7 $19 {[%emt 0:02:01]} (26... Rxd5 27. Nb6 cxb6 28. Qxc8 $11) (26... exd5 27. Qxf5 Ne6 28. Qd3 $17 (28. Rc6 d4 $17)) 27. dxe6 {[%emt 0:00:24]} (27. Ra1 {was called for.}) 27... Nxe6 {[%emt 0:00:08] And now ...Rxd1 would win.} 28. Qf2 $2 {[%emt 0:01:48]} (28. Kf2) 28... Rxd1 {[%emt 0:03:06]} 29. Rxd1 {[%emt 0:00:02]} Rd8 {[%emt 0:00:20]} 30. Qf3 {[%emt 0:00:47]} Qe8 {[%emt 0:02:02] White must now prevent ...Rxd1.} 31. g4 {[%emt 0:00:53]} Rxd1 {[%emt 0:01:56]} 32. Qxd1 {[%emt 0:00:05]} Qc6+ {[%emt 0:00:38]} 33. Kf2 {[%emt 0:00:04]} g6 {[%emt 0:00:47]} 34. gxf5 {[%emt 0:03:53]} gxf5 {[%emt 0:00:11] aiming for ...a2.} 35. Qb1 {[%emt 0:01:37]} Qe4 {[%emt 0:00:34]} 36. Qg1+ {[%emt 0:00:27]} Kf7 {[%emt 0:01:05]} 37. Qd1 {[%emt 0:01:14]} a2 {[%emt 0:01:09]} 38. Nc3 {[%emt 0:01:06]} Bxc3 {[%emt 0:02:45] Black mates.} 39. Qd7+ {[%emt 0:00:04]} Kf8 {[%emt 0:00:16]} 40. Qxe6 {[%emt 0:01:43] [#]} Be1+ $1 {[%emt 0:00:34][%mdl 576] Decoy, Promotion} 41. Ke2 {[%emt 0:01:44]} Qg2+ {[%emt 0:00:10]} (41... a1=B 42. Qc8+ Kg7 43. Qxc7+ Kg6 44. Qd8 $11 (44. Qb6+ Kh5 $11)) (41... a1=Q 42. Qf6+ Kg8 43. Qg5+ Kh8 44. Qf6+ Kg8 45. Qd8+ Kg7 46. Qf6+ Kg8 $11) 42. Kd3 {[%emt 0:00:28]} Qf1+ {[%emt 0:00:05]} ({Don't play} 42... a1=B 43. Bc5+ (43. Qxf5+ Kg8 $11) 43... Kg7 44. Qf6+ Kg8 45. Qf8#) 43. Kd4 {[%emt 0:01:30]} a1=Q+ {[%emt 0:00:14]} (43... a1=B+ $2 {loses.} 44. Kc5 $19) 44. Kd5 {[%emt 0:00:16]} Qd1+ {[%emt 0:00:53] A superb game by Kusa.   Weighted Error Value: White=0.89/Black=0.27 (precise)} ({Much less strong is} 44... Qxh3 45. Bc5+ Kg7 46. Qf6+ Kg8 47. Qf8#) 0-1

[Event "Marienbad A1-GM 2024"]
[Site "Marianske Lazne"]
[Date "2024.01.16"]
[Round "5.2"]
[White "Haba, Petr"]
[Black "Natsidis, Christoph"]
[Result "1/2-1/2"]
[ECO "B43"]
[WhiteElo "2437"]
[BlackElo "2324"]
[Annotator "TA"]
[PlyCount "88"]
[EventDate "2024.01.10"]
[EventType "tourn"]
[EventCountry "CZE"]
[SourceTitle "playchess.com"]
[Source "ChessBase"]
[SourceQuality "1"]
[TimeControl "40/5400+30:1800+30"]

{[%evp 21,88,0,7,0,0,-6,-8,-10,-11,-16,0,-13,0,3,46,37,42,19,47,54,91,63,164,168,160,135,122,144,161,33,78,91,70,54,129,59,171,168,168,168,171,95,95,95,95,95,95,95,95,95,129,89,89,43,89,89,89,29,89,89,89,87,89,89,89,77,77,0,89]} 1. e4 {[%emt 0:00:18]} c5 {[%emt 0:00:10]} 2. Nf3 {[%emt 0:00:07]} e6 {[%emt 0:00:03]} 3. d4 {[%emt 0:00:16]} cxd4 {[%emt 0:00:04]} 4. Nxd4 {[%emt 0:00:04]} a6 {[%emt 0:00:02]} 5. Nc3 {[%emt 0:00:18]} Qc7 {[%emt 0:00:04]} 6. Bd3 {[%emt 0:00:43]} Nf6 {[%emt 0:00:09]} 7. O-O {[%emt 0:01:04]} d6 {[%emt 0:00:05]} 8. a4 {[%emt 0:11:51]} b6 {[%emt 0:12:02]} 9. f4 {[%emt 0:01:31]} Bb7 {[%emt 0:09:34]} 10. Qe2 {[%emt 0:00:31]} Nbd7 {[%emt 0:01:05][%cal Bb8d7,Bd7c5,Bc5d3][%mdl 32]} 11. Kh1 {[%emt 0:00:43]} Be7 {[%emt 0:06:48]} 12. Bd2 {[%emt 0:00:30] B82: Sicilian Scheveningen: 6 f4.} O-O {[%emt 0:02:10]} 13. Rae1 {[%emt 0:00:08]} Nc5 {[%emt 0:02:34]} 14. b4 {[%emt 0:11:32]} Nxd3 {[%emt 0:00:16]} 15. cxd3 {[%emt 0:00:02]} Rac8 {[%emt 0:04:46] [#]} 16. Rf3 $146 {[%emt 0:03:07]} ({Predecessor:} 16. b5 axb5 17. Ncxb5 Qd7 18. Bb4 Ba6 19. Rc1 Rxc1 20. Rxc1 Rc8 21. Qd2 Bf8 22. h3 {1-0 Pichot,A (2543)-Aroshidze,L (2517) Titled Tuesday intern op 4th Oct blitz 2016 (1)}) 16... Nd7 {[%emt 0:12:05]} 17. Rh3 {[%emt 0:04:51]} g6 {[%emt 0:09:56]} 18. f5 {[%emt 0:23:51]} Bf6 {[%emt 0:04:03]} 19. Qe3 {[%emt 0:01:19]} (19. Qf2 $5 {[%cal Rf5g6]}) 19... Bg7 {[%emt 0:01:45] Inhibits Qh6.} 20. fxe6 $40 {[%emt 0:07:16][%mdl 128] Black needs to defend precisely.} Ne5 {[%emt 0:00:07]} 21. Qg3 {[%emt 0:02:44] Inhibits Ng4. And now Qh4 would win. White is more active.} fxe6 {[%emt 0:11:28]} (21... Rce8 $14) 22. Nxe6 $18 {[%emt 0:05:19]} Qf7 {[%emt 0:00:11][%cal Of7f1] ( -> ...Qf1+!)} 23. Nxf8 {[%emt 0:00:05]} Rxf8 {[%emt 0:00:04]} 24. Rg1 {[%emt 0:00:44] Inhibits Qf1.} (24. Qh4 $2 {gets mated.} Qf1+ 25. Rxf1 Rxf1#) 24... h5 {[%emt 0:05:33]} 25. Rh4 {[%emt 0:08:37]} (25. Qh4 $18) 25... Ng4 {[%emt 0:00:44] ...Nf2+ would be deadly.} 26. Rxg4 {[%emt 0:00:05]} (26. Qxd6 $2 Nf2#) (26. Nd1 {simplifies} d5 27. Rxg4 hxg4 28. Qxg4 dxe4 29. dxe4 Re8 30. Nc3) 26... hxg4 {[%emt 0:00:02]} 27. Qxd6 {[%emt 0:04:48]} (27. Nd1 {simplifies} d5 28. Qxg4 dxe4 29. dxe4 Re8 30. Nc3) 27... Qf2 {[%emt 0:05:49]} (27... Qf6 $1 $14 28. Qc7 Qc6) 28. Be1 {[%emt 0:01:55]} (28. Nd5 $16 {Threatens to win with Ne7+.} Bxd5 29. Qxd5+ Kh7 30. Qg5) 28... Qd4 {[%emt 0:07:23]} (28... Qf6 $14 29. Qg3 Qf4 30. Qxf4 Rxf4) 29. Qxg6 {[%emt 0:05:38]} Qxd3 {[%emt 0:00:06]} 30. Qxg4 {[%emt 0:02:03][%cal Oc3d5]} Rf1 {[%emt 0:00:27]} 31. Qe2 {[%emt 0:01:33]} ({White should try} 31. Ne2 $18 Qxe4 32. Qxe4 Rxg1+ 33. Kxg1 Bxe4 34. Kf2) 31... Rxg1+ $16 {[%emt 0:01:03]} 32. Kxg1 {[%emt 0:00:02]} Qd4+ {[%emt 0:00:44]} 33. Kh1 {[%emt 0:01:33][%cal Oc3d5] Black must now prevent Nd5!} Qxb4 {[%emt 0:00:05]} 34. Qd3 {[%emt 0:00:57]} Bxc3 {[%emt 0:02:21][%mdl 64] Remove Defender} 35. Bxc3 {[%emt 0:00:42]} Qxe4 {[%emt 0:02:46][%csl Gb7][%cal Re4g2][%mdl 4096] Endgame KQB-KQB} 36. Qg3+ {[%emt 0:00:02]} Kf7 {[%emt 0:00:12][%cal Ob7c6] [#]} 37. h3 {[%emt 0:00:04]} (37. Qf2+ $1 $16 Ke8 38. Qg3 (38. Qxb6 $2 Qxg2#)) 37... b5 {[%emt 0:00:43]} (37... Bc6 $14) 38. axb5 {[%emt 0:01:45]} axb5 {[%emt 0:00:03]} 39. Kh2 {[%emt 0:00:08]} (39. Qf2+ $16 Ke7 40. Qd2) 39... Ke6 {[%emt 0:01:44]} (39... b4 $1 $11 {remains equal.} 40. Bb2 Ke6) 40. Qg8+ {[%emt 0:01:07]} (40. Qe1 {simplifies} Kd5 41. Qxe4+ Kxe4 42. Bb4) 40... Kd6 {[%emt 0:00:33] [#]} 41. Bb4+ $1 {[%emt 0:14:28]} Kd7 {[%emt 0:03:17]} (41... Kc7 42. Qf7+) 42. Qg7+ {[%emt 0:06:34]} Ke8 {[%emt 0:10:45]} 43. Qf8+ {[%emt 0:04:18]} Kd7 {[%emt 0:00:04][%csl Gb7][%cal Re4g2]} 44. Qg7+ {[%emt 0:00:05]} Ke8 $1 {[%emt 0:00:05] White really could win this.   Weighted Error Value: White=0.25 (precise) /Black=0.24 (precise)} 1/2-1/2

[Event "Marienbad A1-GM 2024"]
[Site "Marianske Lazne"]
[Date "2024.01.16"]
[Round "5.3"]
[White "Haring, Filip"]
[Black "Pang, Tao"]
[Result "1/2-1/2"]
[ECO "C02"]
[WhiteElo "2432"]
[BlackElo "2430"]
[Annotator "TA"]
[PlyCount "112"]
[EventDate "2024.01.10"]
[EventType "tourn"]
[EventCountry "CZE"]
[SourceTitle "playchess.com"]
[Source "ChessBase"]
[SourceQuality "1"]
[TimeControl "40/5400+30:1800+30"]

{[%evp 10,112,0,0,0,-47,-44,-43,-36,-44,-35,-55,-31,-82,-54,-56,-60,-72,-23,-43,-37,-75,-33,-52,-42,-43,-25,-78,-71,-85,-25,-24,-14,-30,0,-6,15,-77,-81,-93,-70,-82,-80,-99,-72,-75,-68,-78,-80,-64,-76,-81,-87,-108,-108,-110,-115,-115,-84,-116,-108,-113,-126,-128,-62,-50,-50,-68,-68,-68,-71,-71,-78,-71,-65,-66,-55,-55,-55,-55,-55,-55,-48,-48,-37,-37,-37,-37,-37,-37,-27,-27,-25,-25,-25,-26,-11,-13,-11,-11,-8,-8,-8,-26,1]} 1. e4 {[%emt 0:00:18]} e6 {[%emt 0:00:05]} 2. d4 {[%emt 0:00:19]} d5 {[%emt 0:00:04]} 3. e5 {[%emt 0:00:14]} c5 {[%emt 0:00:07]} 4. c3 {[%emt 0:00:16]} Nc6 {[%emt 0:00:17]} 5. Nf3 {[%emt 0:00:17]} Bd7 {[%emt 0:00:29]} 6. Bd3 {[%emt 0:00:15]} cxd4 {[%emt 0:00:45] C02: French: Advance Variation.} 7. O-O {[%emt 0:00:09]} (7. cxd4 $11 Qb6 8. Bc2) 7... dxc3 $1 {[%emt 0:00:30] The main line 7...dxc3 scores better than 7...Qb6.} 8. Nxc3 {[%emt 0:00:08]} Nge7 {[%emt 0:00:36] Black is slightly better.} 9. Bg5 {[%emt 0:00:22]} a6 {[%emt 0:01:00] Wards off Nb5} 10. Re1 {[%emt 0:03:24]} h6 {[%emt 0:01:15]} 11. Bh4 {[%emt 0:10:42]} (11. Be3 $15) 11... g5 {[%emt 0:03:48]} 12. Bg3 {[%emt 0:00:37] [#]} Bg7 $146 {[%emt 0:00:53]} ({Predecessor:} 12... Ng6 13. Qb1 Rg8 14. a3 Be7 15. b4 g4 16. Bxg6 Rxg6 17. Nd2 h5 18. Qd3 Bg5 {½-½ Kobese,W (2305)-Klaasen,C (2209) Kimberley Moja op 2023 (4)}) 13. h3 {[%emt 0:04:41]} Ng6 {[%emt 0:11:11]} (13... O-O $17) 14. Rc1 $11 {[%emt 0:08:10]} O-O {[%emt 0:03:03]} 15. Bb1 {[%emt 0:04:24]} Be8 {[%emt 0:25:07]} 16. Na4 {[%emt 0:04:14]} Rc8 {[%emt 0:02:49]} 17. Nc5 {[%emt 0:02:09] [#] Threatens to win with Bxg6.} Qe7 {[%emt 0:01:21][%cal Oc6e5]} 18. Nd3 {[%emt 0:08:35]} (18. Na4 $11 {keeps the balance.}) 18... Bd7 $17 {[%emt 0:05:04]} 19. Qd2 {[%emt 0:02:48]} Qd8 {[%emt 0:03:53]} (19... Rfd8 $17) 20. Nc5 $11 {[%emt 0:01:24]} Rc7 {[%emt 0:01:08]} 21. b4 {[%emt 0:06:06]} Bc8 {[%emt 0:08:23]} 22. Bd3 {[%emt 0:06:21]} Nce7 {[%emt 0:02:35]} 23. Nd4 {[%emt 0:01:20] [#]} (23. h4 $11) 23... Nf5 $1 $17 {[%emt 0:01:25]} 24. Nxf5 {[%emt 0:04:38]} exf5 {[%emt 0:00:01]} 25. f4 {[%emt 0:11:56]} gxf4 {[%emt 0:00:26]} 26. Bxf4 {[%emt 0:00:11]} Nxf4 {[%emt 0:00:07]} 27. Qxf4 {[%emt 0:00:02]} Qg5 {[%emt 0:00:38]} 28. g3 {[%emt 0:00:05]} b6 {[%emt 0:08:22]} 29. Nb3 {[%emt 0:01:03]} (29. Nxa6 $2 {is the wrong capture.} Rxc1 30. Rxc1 Bxe5 31. Qxg5+ hxg5 $19) 29... Rxc1 {[%emt 0:01:06]} 30. Rxc1 {[%emt 0:00:07]} Re8 $36 {[%emt 0:00:17][%mdl 2048] Black has strong initiative.} 31. Nd4 {[%emt 0:03:50]} Bxe5 {[%emt 0:01:16]} 32. Qxg5+ {[%emt 0:00:16]} hxg5 {[%emt 0:00:03]} 33. Nxf5 {[%emt 0:00:07]} Bd7 {[%emt 0:07:27]} 34. Kg2 {[%emt 0:01:26]} Kf8 {[%emt 0:01:12]} 35. h4 {[%emt 0:04:04]} gxh4 {[%emt 0:00:05]} 36. gxh4 {[%emt 0:00:04]} Rc8 {[%emt 0:00:36]} (36... Re6 $17 37. h5 Rf6) 37. Rxc8+ $15 {[%emt 0:04:32]} Bxc8 {[%emt 0:00:01][%mdl 4096] Endgame KBB-KBN. This pair of bishops is nice.} 38. a4 {[%emt 0:00:23]} a5 {[%emt 0:04:22]} 39. bxa5 {[%emt 0:00:21]} bxa5 {[%emt 0:00:03]} 40. Kf3 {[%emt 0:00:41]} Bd7 {[%emt 0:00:34]} 41. Bc2 {[%emt 0:30:02]} Bf6 {[%emt 0:32:13]} 42. Ke3 {[%emt 0:00:56]} Kg8 {[%emt 0:02:17]} 43. Nh6+ {[%emt 0:00:52]} Kg7 $1 {[%emt 0:00:13]} 44. Nf5+ {[%emt 0:00:02]} Kh8 {[%emt 0:00:07]} 45. Kf4 {[%emt 0:07:56]} Bb2 {[%emt 0:01:01]} 46. Bb3 {[%emt 0:02:01]} Be6 {[%emt 0:02:22]} 47. Ne7 {[%emt 0:00:00]} Bf6 {[%emt 0:00:00][%csl LRe7,LRh4]} 48. Nc6 {[%emt 0:00:00]} Bc3 {[%emt 0:00:00]} 49. Ne7 {[%emt 0:00:00]} Bb4 {[%emt 0:00:00]} 50. Nxd5 {[%emt 0:00:00]} Be1 {[%emt 0:00:00]} 51. h5 {[%emt 0:00:00]} Kg7 {[%emt 0:00:00]} 52. Bc4 {[%emt 0:00:00]} Bf2 {[%emt 0:00:00]} 53. Kf3 {[%emt 0:00:00]} Bc5 {[%emt 0:00:00]} 54. Ne3 {[%emt 0:00:00]} Bd7 {[%emt 0:00:00]} 55. Bb3 {[%emt 0:00:00]} Kh6 {[%emt 0:00:00]} 56. Ng4+ {[%emt 0:00:00]} Bxg4+ {[%emt 0:00:00] Weighted Error Value: White=0.11 (very precise) /Black=0.10 (very precise)} (56... Kxh5 $2 57. Nf6+ (57. Bxf7+ Kh4 $17) 57... Kg6 58. Nxd7 $18) (56... Kg5 $5 {[%cal Rd7g4]} 57. Ne5 Be8 $11) 1/2-1/2

[Event "Marienbad A1-GM 2024"]
[Site "Marianske Lazne"]
[Date "2024.01.16"]
[Round "5.4"]
[White "Baenziger, Fabian"]
[Black "Neuman, Petr"]
[Result "1-0"]
[ECO "D15"]
[WhiteElo "2414"]
[BlackElo "2398"]
[Annotator "TA"]
[PlyCount "45"]
[EventDate "2024.01.10"]
[EventType "tourn"]
[EventCountry "CZE"]
[SourceTitle "playchess.com"]
[Source "ChessBase"]
[SourceQuality "1"]
[TimeControl "40/5400+30:1800+30"]

{[%evp 9,45,31,38,17,17,33,34,30,31,35,33,28,13,10,29,6,26,29,32,31,51,31,74,70,84,79,86,110,104,62,214,190,507,496,1020,996,903,802]} 1. d4 {[%emt 0:00:03]} d5 {[%emt 0:00:03]} 2. c4 {[%emt 0:00:06]} c6 {[%emt 0:00:03]} 3. Nf3 {[%emt 0:00:12]} Nf6 {[%emt 0:00:06]} 4. Nc3 {[%emt 0:00:14]} a6 {[%emt 0:00:06]} 5. e3 {[%emt 0:00:21]} Bf5 {[%emt 0:00:06]} 6. Ne5 {[%emt 0:01:36] D15: Slav Defence: 4 Nc3 a6 and gambit lines after 4 Nc3 dxc4.} Nbd7 {[%emt 0:00:20]} 7. Qb3 {[%emt 0:00:06][%csl LRb7,LRd5]} Qc7 {[%emt 0:00:25]} 8. cxd5 {[%emt 0:00:07] White is slightly better.} Nxe5 {[%emt 0:00:22]} 9. dxe5 {[%emt 0:00:06]} Nxd5 {[%emt 0:00:07]} 10. Nxd5 {[%emt 0:00:27]} cxd5 {[%emt 0:00:05]} 11. Bd2 {[%emt 0:00:06]} Qxe5 {[%emt 0:00:37]} 12. Be2 {[%emt 0:00:27]} Bd7 {[%emt 0:04:26]} 13. Bc3 {[%emt 0:00:13]} Qc7 {[%emt 0:01:01]} 14. Qxd5 {[%emt 0:00:06]} Bc6 {[%emt 0:04:57] Black is weak on the dark squares} 15. Qg5 {[%emt 0:01:06]} (15. Qc4 $5 {[%cal Re2h5]}) 15... f6 {[%emt 0:04:37]} 16. Qg4 {[%emt 0:01:24] [#]} g6 $146 {[%emt 0:13:57]} ({Predecessor:} 16... Qd7 17. Qh4 Bxg2 18. Rg1 Qh3 19. Qc4 Rd8 20. Ba5 Rc8 21. Qg4 Rc5 22. Bb4 Qxg4 23. Bxg4 {½-½ Vidit,S (2669)-Andreikin,D (2733) Titled Tuesday intern op 2nd Aug blitz 2016 (5)}) 17. O-O {[%emt 0:09:14]} Bg7 {[%emt 0:00:24]} 18. Qc4 {[%emt 0:07:01] White is more active.} b5 {[%emt 0:13:34]} 19. Qe6 {[%emt 0:15:41]} Qb7 $2 {[%emt 0:00:14] Loses the game.} ({Black should try} 19... Qd7 $14 20. Bg4 b4 21. Qxd7+ (21. Bxb4 f5 $14) 21... Bxd7 22. Bxd7+ Kxd7 23. Bxb4 f5) 20. Rfd1 $18 {[%emt 0:00:29] [#] Hoping for Ba5.} Rf8 $2 {[%emt 0:13:35]} (20... Qc8 21. Qb3 a5) 21. Rac1 {[%emt 0:09:07] White is clearly winning.} Rf7 {[%emt 0:02:06]} (21... Bd7 $142 22. Qb3 Rc8) 22. Ba5 {[%emt 0:02:50]} Bd7 {[%emt 0:01:20]} 23. Bf3 {[%emt 0:01:33][%mdl 64] Skewer.   Weighted Error Value: White=0.09 (flawless) /Black=0.46} 1-0

[Event "Marienbad A1-GM 2024"]
[Site "Marianske Lazne"]
[Date "2024.01.16"]
[Round "5.5"]
[White "Stefansson, Hannes"]
[Black "Samani, Yamac"]
[Result "1/2-1/2"]
[ECO "C88"]
[WhiteElo "2498"]
[BlackElo "2380"]
[Annotator "TA"]
[PlyCount "31"]
[EventDate "2024.01.10"]
[EventType "tourn"]
[EventCountry "CZE"]
[SourceTitle "playchess.com"]
[Source "ChessBase"]
[SourceQuality "1"]
[TimeControl "40/5400+30:1800+30"]

{[%evp 14,17,26,24,43,26]} 1. e4 {[%emt 0:00:04]} e5 {[%emt 0:09:34]} 2. Nf3 {[%emt 0:00:21]} Nc6 {[%emt 0:00:19]} 3. Bb5 {[%emt 0:00:23][%cal Bf1b5,Bb5a4,Ba4b3,Bb3a2][%mdl 32]} a6 {[%emt 0:00:46]} 4. Ba4 {[%emt 0:00:22]} Nf6 {[%emt 0:00:16]} 5. O-O {[%emt 0:00:33]} Be7 {[%emt 0:00:36]} 6. Re1 {[%emt 0:00:32]} b5 {[%emt 0:00:17]} 7. Bb3 {[%emt 0:00:29]} O-O {[%emt 0:00:14]} 8. a4 $1 {[%emt 0:01:26][%mdl 4] axb5 is the strong threat. is currently scoring better than 8.c3.} Na5 {[%emt 0:00:47] C88: Closed Ruy Lopez: Anti-Marshall Systems.} 9. Ba2 {[%emt 0:00:54] [#]} (9. axb5 $5 {[%cal Ra1a5]} Nxb3 10. cxb3 $14) {Predecessor:} 9... d6 $146 10. b4 Nc4 11. Nc3 c6 12. a5 d5 13. Bxc4 dxc4 14. Ba3 Bg4 15. d3 cxd3 16. cxd3 {0-1 Sevian,S (2696)-Nepomniachtchi,I (2771) Saint Louis Blitz 2023 (4)} 1/2-1/2

[Event "Marienbad A1-GM 2024"]
[Site "Marianske Lazne"]
[Date "2024.01.17"]
[Round "6.1"]
[White "Kusa, Jakub"]
[Black "Samani, Yamac"]
[Result "1/2-1/2"]
[ECO "E68"]
[WhiteElo "2350"]
[BlackElo "2380"]
[Annotator "RC"]
[PlyCount "57"]
[EventDate "2024.01.10"]
[EventType "tourn"]
[EventCountry "CZE"]
[SourceTitle "playchess.com"]
[Source "ChessBase"]
[SourceQuality "1"]
[TimeControl "40/5400+30:1800+30"]

1. d4 {[%emt 0:00:09]} Nf6 {[%emt 0:05:40]} 2. Nf3 {[%emt 0:00:42]} g6 {[%emt 0:00:53]} 3. g3 Bg7 {[%emt 0:00:28]} 4. Bg2 {[%emt 0:00:59]} O-O {[%emt 0:00:21]} 5. O-O {[%emt 0:01:31]} d6 {[%emt 0:00:17]} 6. c4 {[%emt 0:00:21]} Nbd7 {[%emt 0:00:26]} 7. Nc3 {[%emt 0:01:17]} e5 {[%emt 0:00:18]} 8. e4 {[%emt 0:01:26]} exd4 {[%emt 0:01:14]} 9. Nxd4 {[%emt 0:00:40]} Re8 {[%emt 0:00:14]} 10. Be3 {[%emt 0:06:35]} Nc5 {[%emt 0:04:34]} 11. f3 {[%emt 0:03:33]} a5 {[%emt 0:04:07]} 12. Qd2 {[%emt 0:02:20]} c6 {[%emt 0:09:35]} 13. Rfd1 {[%emt 0:03:24]} Nfd7 {[%emt 0:06:49]} 14. b3 {[%emt 0:07:53]} Qe7 {[%emt 0:02:51]} 15. Bh6 {[%emt 0:11:23]} Bh8 {[%emt 0:06:15]} 16. Nde2 {[%emt 0:02:57]} a4 {[%emt 0:06:15]} 17. b4 {[%emt 0:03:11]} Ne6 {[%emt 0:03:35]} 18. Qxd6 {[%emt 0:01:38]} Qxd6 {[%emt 0:01:15]} 19. Rxd6 {[%emt 0:00:07]} Ne5 {[%emt 0:02:22]} 20. c5 {[%emt 0:03:32]} g5 {[%emt 0:10:19]} 21. f4 {[%emt 0:02:39]} Ng4 {[%emt 0:01:00]} 22. Bxg5 {[%emt 0:02:23]} Nxg5 {[%emt 0:00:18]} 23. fxg5 {[%emt 0:00:10]} Be5 {[%emt 0:03:33]} 24. Rd2 {[%emt 0:06:04]} Ne3 {[%emt 0:01:45]} 25. Rc1 {[%emt 0:02:03]} Nc4 {[%emt 0:03:47]} 26. Rdd1 {[%emt 0:02:01]} Nb2 {[%emt 0:03:31]} 27. Rd2 {[%emt 0:01:19]} Nc4 {[%emt 0:01:58]} 28. Rdd1 {[%emt 0:01:09]} Nb2 {[%emt 0:04:20]} 29. Rd2 {[%emt 0:00:23]} 1/2-1/2